[Event "USA-ch Junior Girls 2018"]
[Site "Saint Louis"]
[Date "2018.07.15"]
[Round "4"]
[White "Samadashvili, Martha"]
[Black "Matus, Nastassja"]
[Result "1-0"]
[ECO "B52"]
[WhiteElo "2040"]
[BlackElo "1960"]
[Annotator "NA RC"]
[PlyCount "99"]
[EventDate "2018.07.12"]
[EventType "tourn"]
[EventCountry "USA"]
[SourceTitle "playchess.com"]
[Source "ChessBase"]
[SourceQuality "1"]
[TimeControl "40/5400+30:1800+30"]

{[%evp 33,87,-62,-48,-52,-63,-60,-44,-61,-71,-72,-67,-64,-45,-48,-16,-22,4970,12832,2016,12838,2145,12840,1848,599,619,532,545,560,548,536,403,585,641,688,700,794,719,814,718,910,1091,1148,806,891,809,1211,1030,5006,1001,6168,1575,29972,29978,29982,29983,29985]} 1. e4 {[%emt 0:00:00]} c5 {[%emt 0:00:00]} 2. Nf3 {[%emt 0:00:00]} d6 {[%emt 0:00:00]} 3. Bb5+ {[%emt 0:00:00]} Bd7 {[%emt 0:04:45]} 4. Bxd7+ {[%emt 0:00:02]} Qxd7 {[%emt 0:02:36]} 5. c4 {[%emt 0:01:15]} Nc6 {[%emt 0:03:12]} 6. O-O {[%emt 0:03:14]} g6 {[%emt 0:02:25]} 7. d4 {[%emt 0:03:19]} cxd4 {[%emt 0:01:37]} 8. Nxd4 {[%emt 0:00:04]} Bg7 {[%emt 0:00:46]} 9. Be3 {[%emt 0:00:40]} Nf6 {[%emt 0:02:47]} 10. f3 {[%emt 0:00:41]} O-O {[%emt 0:01:59]} 11. Nc3 {[%emt 0:00:10]} Rac8 {[%emt 0:04:51]} 12. Rc1 {[%emt 0:00:31] B52: Sicilian: Moscow Variation with 3...Bd7} (12. b3 a6 13. a4 e6 14. Rc1 Rfd8 15. Kh1 d5 16. exd5 exd5 17. c5 Re8 18. Bf2 Ne5 19. Nce2 Bh6 20. Rc2 Bf8 21. Bh4 {0-1 (30) Hansen,E (2573)-Jones,G (2623) Berlin 2015}) 12... Nxd4 {[%emt 0:06:38]} 13. Bxd4 {[%emt 0:02:17]} Rxc4 {[%emt 0:02:27]} 14. Bxa7 {[%emt 0:02:21]} Bh6 $146 {[%emt 0:10:27]} ({Predecessor:} 14... b5 15. Be3 b4 16. Qb3 Rfc8 17. Ne2 Qb5 18. Qd3 Qc6 19. Rxc4 Qxc4 20. Qxc4 Rxc4 {1-0 (41) Fendrik,L (2244)-Kosztolanczi,G (2183) Hungary 2006}) 15. Rb1 {[%emt 0:01:23]} Rfc8 {[%emt 0:14:20]} 16. Qd3 {[%emt 0:13:33]} b5 {[%emt 0:05:54]} 17. Be3 {[%emt 0:14:20]} Bxe3+ {[%emt 0:11:26]} 18. Qxe3 {[%emt 0:00:06]} b4 {[%emt 0:01:00]} 19. Ne2 {[%emt 0:13:21]} Qb7 {[%emt 0:06:16]} 20. Rfc1 {[%emt 0:07:49]} Qa6 {[%emt 0:04:07]} 21. Rxc4 {[%emt 0:04:55]} Rxc4 {[%emt 0:00:25]} 22. a3 {[%emt 0:00:26]} bxa3 {[%emt 0:02:05]} 23. bxa3 {[%emt 0:00:27]} Rc2 {[%emt 0:00:50]} 24. Nd4 {[%emt 0:02:49]} Ra2 $2 {[%emt 0:00:57]} (24... Rc8 $11) 25. Rb8+ {[%emt 0:01:34]} Ne8 {[%emt 0:01:13]} 26. Rxe8+ {[%emt 0:00:58]} Kg7 {[%emt 0:00:02] [#]} 27. Nf5+ $1 {[%emt 0:01:12]} Kf6 {[%emt 0:00:12]} 28. Qd4+ {[%emt 0:03:02]} e5 {[%emt 0:02:06]} 29. Qxd6+ {[%emt 0:00:57]} Qxd6 {[%emt 0:00:08]} 30. Nxd6 {[%emt 0:00:05]} Rxa3 {[%emt 0:00:14]} 31. Nc4 {[%emt 0:00:06]} Ra1+ {[%emt 0:01:07]} 32. Kf2 {[%emt 0:00:05]} Kg5 {[%emt 0:01:01]} 33. Rxe5+ {[%emt 0:00:34]} f5 {[%emt 0:00:55]} 34. exf5 {[%emt 0:00:31]} Ra2+ {[%emt 0:00:27]} 35. Kg3 {[%emt 0:00:17]} gxf5 {[%emt 0:00:25]} 36. Ne3 {[%emt 0:00:16]} Re2 {[%emt 0:01:13]} 37. Rxf5+ {[%emt 0:00:28]} Kg6 {[%emt 0:00:10]} 38. Re5 {[%emt 0:00:18]} Ra2 {[%emt 0:00:37]} 39. Kf4 {[%emt 0:00:32]} Ra4+ {[%emt 0:00:31]} 40. Re4 {[%emt 0:00:00]} Ra5 {[%emt 0:00:00]} 41. g4 {[%emt 0:00:13]} Rb5 {[%emt 0:00:51]} 42. h4 {[%emt 0:00:15]} Ra5 {[%emt 0:00:17]} 43. h5+ {[%emt 0:00:18]} Kf6 {[%emt 0:00:24] [#]} 44. g5+ {[%emt 0:00:43]} Kf7 {[%emt 0:00:28]} 45. Ng4 {[%emt 0:00:07]} Rb5 {[%emt 0:00:21]} 46. Ra4 {[%emt 0:00:18]} Rb7 {[%emt 0:00:37]} 47. Ne5+ {[%emt 0:00:04]} Ke7 {[%emt 0:00:16]} 48. Kf5 {[%emt 0:00:04]} Rc7 {[%emt 0:00:21]} 49. g6 {[%emt 0:00:31]} Kf8 {[%emt 0:00:31]} 50. h6 {[%emt 0:00:35]} 1-0

[Event "USA-ch Junior Girls 2018"]
[Site "Saint Louis"]
[Date "2018.07.16"]
[Round "5"]
[White "Morris-Suzuki, Sophie"]
[Black "Samadashvili, Martha"]
[Result "0-1"]
[ECO "B47"]
[WhiteElo "1980"]
[BlackElo "2040"]
[Annotator "NA RC"]
[PlyCount "168"]
[EventDate "2018.07.12"]
[EventType "tourn"]
[EventCountry "USA"]
[SourceTitle "playchess.com"]
[Source "ChessBase"]
[SourceQuality "1"]
[TimeControl "40/5400+30:1800+30"]

{[%evp 19,155,10,32767,8,21,16,19,32767,23,32767,32767,32767,32767,32767,32767,32767,32767,32767,32767,3,0,32767,32767,32767,-9,-11,0,32767,32767,0,13,32767,0,-20,14,-16,2,0,31,12,25,0,34,17,24,7,68,0,40,10,54,-17,-20,-38,-41,-41,-28,-52,-44,-27,-53,32767,32767,32767,-31,-85,-41,-43,-57,-53,-55,-81,0,-132,-142,-133,-126,-132,-70,-97,-62,-82,-53,-173,-128,-243,-256,32767,-265,-341,-163,-316,-247,-161,-49,32767,-138,-196,-104,-264,-211,-556,-61,-335,-122,-152,-157,-293,-316,-361,-377,-441,-250,-215,-182,-216,-150,-359,-170,32767,-46,-369,-343,-408,-345,-304,32767,-306,0,-325,-352,-311,-311,-329,-241,-1518,-2600,-12845]} 1. e4 {[%emt 0:00:00]} c5 {[%emt 0:00:00]} 2. Nf3 {[%emt 0:00:26]} e6 {[%emt 0:00:00]} 3. d4 {[%emt 0:01:14]} cxd4 {[%emt 0:00:00]} 4. Nxd4 {[%emt 0:00:11]} Nc6 {[%emt 0:00:00]} 5. Nc3 {[%emt 0:00:47]} Qc7 {[%emt 0:00:00]} 6. Be2 {[%emt 0:00:35]} a6 {[%emt 0:00:00]} 7. O-O {[%emt 0:00:15]} Nf6 {[%emt 0:00:19]} 8. Kh1 {[%emt 0:03:51]} Be7 {[%emt 0:02:03]} 9. f4 {[%emt 0:02:34]} d6 {[%emt 0:00:08]} 10. Be3 {[%emt 0:01:32]} O-O {[%emt 0:00:14]} 11. Qe1 {[%emt 0:01:29]} Nxd4 {[%emt 0:00:28]} 12. Bxd4 {[%emt 0:00:10]} b5 {[%emt 0:00:12]} 13. Qg3 {[%emt 0:02:27]} Bb7 {[%emt 0:11:49] LiveBook: 114 Games} 14. a3 {[%emt 0:03:36]} Bc6 {[%emt 0:05:53]} 15. Rae1 {[%emt 0:02:44]} Rad8 {[%emt 0:01:08]} 16. Bd3 {[%emt 0:00:16]} Qd7 {[%emt 0:03:27]} 17. Nd1 {[%emt 0:01:03]} g6 {[%emt 0:10:37]} 18. Nf2 {[%emt 0:10:39]} Nh5 {[%emt 0:08:47]} 19. Qe3 {[%emt 0:04:23]} f6 {[%emt 0:09:33]} 20. Bc3 {[%emt 0:10:46]} e5 {[%emt 0:03:04]} 21. Nh3 {[%emt 0:03:18]} Ng7 {[%emt 0:05:47]} 22. Ba5 {[%emt 0:14:36]} Rc8 {[%emt 0:01:53]} 23. c4 {[%emt 0:03:15]} Qb7 {[%emt 0:03:25]} 24. cxb5 {[%emt 0:06:04]} axb5 {[%emt 0:00:18]} 25. Qg3 {[%emt 0:01:01]} Nh5 {[%emt 0:11:57]} 26. Qg4 {[%emt 0:12:42]} Ng7 {[%emt 0:02:33]} 27. Bc3 {[%emt 0:02:52]} Bd7 {[%emt 0:07:19]} 28. Qf3 {[%emt 0:00:02]} Rce8 {[%emt 0:03:04]} 29. Bb1 {[%emt 0:00:30]} Be6 {[%emt 0:01:23]} 30. Rd1 {[%emt 0:01:42]} Kh8 {[%emt 0:01:55]} 31. Bb4 {[%emt 0:00:34]} Rd8 {[%emt 0:00:35]} 32. Nf2 {[%emt 0:05:36]} Ne8 {[%emt 0:00:56]} 33. Qg3 {[%emt 0:00:32]} (33. Ng4 $16) 33... Bg8 {[%emt 0:00:39]} 34. Ng4 {[%emt 0:00:45]} Ng7 {[%emt 0:01:05]} 35. fxe5 {[%emt 0:00:55]} Nh5 {[%emt 0:01:50]} 36. Qh3 {[%emt 0:01:28]} dxe5 {[%emt 0:01:11]} 37. Bxe7 {[%emt 0:01:49]} Qxe7 {[%emt 0:00:05]} 38. Qc3 {[%emt 0:01:23]} Be6 {[%emt 0:00:46]} 39. Ne3 {[%emt 0:00:08]} Nf4 {[%emt 0:00:17]} 40. Rfe1 {[%emt 0:00:00]} Rc8 {[%emt 0:00:00]} 41. Qa5 {[%emt 0:03:02]} Qc5 {[%emt 0:08:28]} 42. Qd2 {[%emt 0:06:12]} Bb3 {[%emt 0:04:49]} 43. Rc1 {[%emt 0:00:29]} Qd4 {[%emt 0:01:06]} 44. Qf2 {[%emt 0:04:33]} Rxc1 {[%emt 0:04:17]} 45. Rxc1 {[%emt 0:00:03]} f5 {[%emt 0:05:44]} (45... Nd3 $15 46. Bxd3 Qxd3) 46. Qf3 {[%emt 0:07:20]} (46. exf5 $11 {remains equal.} gxf5 47. Rf1) 46... Qxb2 {[%emt 0:01:25]} 47. Rf1 {[%emt 0:01:59]} fxe4 {[%emt 0:01:01]} 48. Qxe4 {[%emt 0:00:50]} Qd4 {[%emt 0:02:12]} (48... Be6 $17 49. a4 bxa4 50. Qxa4 Kg7) 49. g3 {[%emt 0:06:28]} Ne6 {[%emt 0:00:28]} 50. Rxf8+ {[%emt 0:02:32]} Nxf8 {[%emt 0:00:04]} 51. Qa8 {[%emt 0:02:51]} ({White should play} 51. Kg2 $15) 51... Kg7 {[%emt 0:00:46]} 52. Qb7+ {[%emt 0:00:29]} (52. Qf3 $17) 52... Bf7 {[%emt 0:01:15]} 53. Qe4 {[%emt 0:00:56]} Nd7 {[%emt 0:03:18]} 54. Kg2 Nc5 {[%emt 0:01:39]} (54... Qb2+ $142 55. Bc2 Qxa3) 55. Qf3 {[%emt 0:01:01]} (55. Qxd4 {ist der einzige Weg für Weiss..} exd4 56. Ng4) 55... Qb2+ {[%emt 0:00:46]} 56. Bc2 {[%emt 0:00:02]} Bb3 $2 {[%emt 0:01:20]} ({Lieber} 56... Nb3 $19 57. Qg4 Nc5) 57. Qf2 {[%emt 0:00:20]} Qd4 {[%emt 0:01:10]} 58. Bb1 {[%emt 0:00:54]} (58. Bxb3 $17 Nxb3 59. Qf3) 58... Bd5+ {[%emt 0:00:42]} (58... Be6 $19 {bietet bessere Gewinnchancen.} 59. Bc2 Qc3) 59. Kg1 $2 {[%emt 0:00:42]} (59. Nxd5 $17 Qxd5+ 60. Kg1) 59... Be4 {[%emt 0:00:50]} 60. Ba2 $2 {[%emt 0:00:29]} (60. Bxe4 Nxe4 61. Qe2) 60... Bf5 $2 {[%emt 0:00:47]} ({Besser ist} 60... Nd3 $19 61. Qd2 b4) 61. g4 $2 {[%emt 0:00:27]} (61. Nxf5+ $17 {was called for.} gxf5 62. Qxd4 exd4 63. Bb1) 61... Be6 {[%emt 0:00:42]} (61... Bxg4 $19 {has better winning chances.} 62. Nf1 Ne4 63. Qxd4 exd4) 62. Bxe6 {[%emt 0:00:36]} Nxe6 {[%emt 0:00:05]} 63. Kg2 {[%emt 0:00:11]} (63. h4 $142) 63... Nf4+ {[%emt 0:00:18]} 64. Kg3 {[%emt 0:00:12]} Nd3 {[%emt 0:01:30]} 65. Qd2 {[%emt 0:00:03]} Qf4+ {[%emt 0:00:16]} (65... e4 $142 66. Nf1 Qg1+ 67. Qg2 Qc5) 66. Kg2 {[%emt 0:00:06]} Qe4+ {[%emt 0:00:06]} 67. Kg3 {[%emt 0:00:08]} Nc5 {[%emt 0:00:51]} 68. Kf2 $2 {[%emt 0:01:14]} (68. Qe2 {might work better.}) 68... Qf4+ {[%emt 0:00:31]} (68... Qh1 $142 69. Ke2 Qxh2+ 70. Kd1 Qxd2+ 71. Kxd2 Kf6) 69. Kg2 {[%emt 0:00:06]} Qd4 {[%emt 0:00:41]} ({Black should try} 69... Ne4 $19 70. Qe2 Nf6) 70. Qf2 $2 {[%emt 0:01:26]} (70. Qxd4 $17 exd4 71. Nd5) 70... Nd3 {[%emt 0:00:13]} 71. Qg3 {[%emt 0:01:04]} Nf4+ {[%emt 0:00:23]} 72. Kf3 {[%emt 0:00:17]} Qd2 {[%emt 0:00:38]} 73. Ke4 {[%emt 0:00:33]} (73. Qf2 {was forced.} Qd6 74. Qc2) 73... Qd4+ $2 {[%emt 0:00:33]} (73... Qd6 $19 74. g5 Nd3) 74. Kf3 {[%emt 0:00:06]} Qd3 {[%emt 0:00:32]} 75. g5 {[%emt 0:01:08]} Qxa3 {[%emt 0:01:11]} 76. Qg4 {[%emt 0:00:01]} Qd6 {[%emt 0:00:33]} 77. Qh4 $2 {[%emt 0:00:21]} (77. Qc8) 77... Qc6+ $19 {[%emt 0:00:45]} 78. Kg3 {[%emt 0:00:50]} Qc3 {[%emt 0:01:01]} 79. Kf2 {[%emt 0:00:32]} Qxe3+ {[%emt 0:00:12]} 80. Kxe3 {[%emt 0:00:04]} Ng2+ {[%emt 0:00:02]} 81. Ke4 {[%emt 0:00:05]} Nxh4 {[%emt 0:00:04]} 82. Kxe5 {[%emt 0:00:02]} Nf3+ {[%emt 0:00:20]} 83. Kf4 {[%emt 0:00:11]} b4 {[%emt 0:00:08]} 84. Kxf3 {[%emt 0:00:05]} b3 {[%emt 0:00:03]} 0-1

[Event "USA-ch Junior Girls 2018"]
[Site "Saint Louis"]
[Date "2018.07.16"]
[Round "5"]
[White "Vittal, Sanjana"]
[Black "Feng, Maggie"]
[Result "0-1"]
[ECO "C18"]
[WhiteElo "1947"]
[BlackElo "2236"]
[Annotator "NA RC"]
[PlyCount "136"]
[EventDate "2018.07.12"]
[EventType "tourn"]
[EventCountry "USA"]
[SourceTitle "playchess.com"]
[Source "ChessBase"]
[SourceQuality "1"]
[TimeControl "40/5400+30:1800+30"]

{[%evp 20,134,29,23,63,32767,73,61,55,55,58,32767,32767,32767,32767,32767,32767,32767,32767,32767,146,136,141,130,32767,90,97,57,32767,32767,84,56,102,75,106,32767,32767,95,121,127,133,146,146,143,153,145,146,152,159,152,150,152,32767,32767,152,71,116,100,98,76,81,0,19,-113,-127,-123,-125,-116,-112,-125,-106,-196,-201,-208,-204,-253,-272,-252,-269,-258,-254,-312,-288,-344,-345,-379,-424,-518,-539,-537,32767,-555,-618,-729,-1055,-1127,-1037,-1006,-1073,-1414,-1196,-1717,-2278,-2272,-9800,-6563,32767,-29984,-29982,-6559,-29986,-29991,-29990,-29991,-29992,-29992,-29993]} 1. e4 {[%emt 0:00:00]} e6 {[%emt 0:00:00]} 2. d4 {[%emt 0:00:00]} d5 {[%emt 0:00:00]} 3. Nc3 {[%emt 0:00:00]} Bb4 {[%emt 0:00:09]} 4. e5 {[%emt 0:00:00]} Ne7 {[%emt 0:00:31]} 5. a3 {[%emt 0:00:00]} Bxc3+ {[%emt 0:00:40]} 6. bxc3 {[%emt 0:00:00]} c5 {[%emt 0:00:11]} 7. Qg4 {[%emt 0:00:00]} O-O {[%emt 0:00:42]} 8. Bd3 {[%emt 0:00:06]} Nbc6 {[%emt 0:00:12]} 9. Nf3 {[%emt 0:00:04]} f5 {[%emt 0:00:14]} 10. Qh3 {[%emt 0:00:09]} Qa5 {[%emt 0:04:46] LiveBook: 11 Games} 11. Bd2 $1 {[%emt 0:00:18]} Qa4 {[%emt 0:02:39]} 12. dxc5 {[%emt 0:00:17] C18: French: 3 Nc3 Bb4: Main line: 7 h4 and 7 Qg4} (12. Rg1 cxd4 13. g4 dxc3 14. Bxc3 Bd7 15. gxf5 Nxf5 16. Rg4 d4 17. Bd2 Nce7 18. Nxd4 h5 19. Nxf5 Qxg4 20. Nxe7+ Kf7 21. Qxg4 hxg4 22. Bg6+ Kxe7 23. Bb4+ {1-0 (23) Garakov,M (2439)-Rustemov,A (2547) Novokuznetsk 2008}) 12... Qg4 {[%emt 0:05:29]} 13. O-O $146 {[%emt 0:04:47]} ({Predecessor:} 13. Qg3 Ng6 14. Be3 Ngxe5 15. Nxe5 Qxg3 16. hxg3 Nxe5 17. Bd4 Nc6 18. f4 Nxd4 19. cxd4 b6 20. cxb6 axb6 {½-½ (54) Selkovski,Z (1939)-Jacimovic,D (2407) Ohrid 2016}) 13... Qxh3 {[%emt 0:10:33]} 14. gxh3 {[%emt 0:00:06]} Na5 {[%emt 0:00:39]} 15. Rab1 {[%emt 0:04:34]} Nec6 {[%emt 0:13:05]} 16. Rfe1 {[%emt 0:02:28]} Bd7 {[%emt 0:02:08]} 17. Nd4 {[%emt 0:07:34]} Rfc8 {[%emt 0:04:17]} 18. Nb5 {[%emt 0:04:11]} Nd8 {[%emt 0:04:38]} 19. Be3 {[%emt 0:01:26]} Nc4 {[%emt 0:05:58]} ({Better is} 19... f4 $14 20. Bxf4 Rxc5) 20. Bxc4 $1 {[%emt 0:10:48]} dxc4 {[%emt 0:00:02]} 21. Nd6 {[%emt 0:00:20]} Rc7 {[%emt 0:00:37]} 22. Bd4 {[%emt 0:02:35]} Bc6 {[%emt 0:01:21]} 23. Rb4 {[%emt 0:04:02]} Bd5 {[%emt 0:01:28]} 24. Reb1 {[%emt 0:03:48]} Rd7 {[%emt 0:07:53]} 25. R4b2 {[%emt 0:15:25]} Rc7 {[%emt 0:01:29]} 26. a4 {[%emt 0:03:07]} Rd7 {[%emt 0:00:32]} 27. a5 {[%emt 0:01:19]} a6 {[%emt 0:08:44]} 28. f4 {[%emt 0:05:40]} Rb8 {[%emt 0:03:08]} 29. Bf2 {[%emt 0:04:50]} Nf7 {[%emt 0:08:28]} 30. Rb6 {[%emt 0:02:38]} Nxd6 {[%emt 0:05:00]} 31. cxd6 {[%emt 0:01:46]} Rc8 {[%emt 0:00:18]} 32. Be3 {[%emt 0:03:15]} Kf7 {[%emt 0:00:19]} 33. Kf2 {[%emt 0:00:38]} Be4 {[%emt 0:00:22]} 34. R1b2 {[%emt 0:00:32]} Ra8 {[%emt 0:00:10]} 35. R6b4 {[%emt 0:01:20]} Rc8 {[%emt 0:00:21]} 36. Bb6 {[%emt 0:03:46]} h6 {[%emt 0:06:21]} 37. h4 {[%emt 0:01:19]} (37. Be3 $142) 37... g5 $1 {[%emt 0:03:23]} 38. hxg5 {[%emt 0:11:14]} hxg5 {[%emt 0:00:01]} 39. fxg5 {[%emt 0:00:44]} Kg6 {[%emt 0:01:03]} 40. Be3 {[%emt 0:00:00]} (40. h4 $16) 40... Rh8 {[%emt 0:00:00]} 41. Kg3 {[%emt 0:25:18]} (41. Rxc4 $11 Rxh2+ 42. Kf1) 41... Rdh7 {[%emt 0:03:01]} 42. Bg1 {[%emt 0:01:58] [#]} Bd5 $1 {[%emt 0:07:59]} ({Don't play} 42... Kxg5 $6 43. Rxc4 Rg8 44. Rb1 $15) 43. Rb1 {[%emt 0:01:01]} Kxg5 {[%emt 0:00:07]} 44. Kf2 {[%emt 0:06:18]} Kf4 {[%emt 0:02:03]} 45. Ke2 {[%emt 0:00:58]} (45. Re1 $17 {was worth a try.}) 45... Rg8 {[%emt 0:03:58]} ({Don't do} 45... Kxe5 46. Bd4+ Kxd6 47. Bxh8) 46. Rf1+ {[%emt 0:01:33]} Kxe5 {[%emt 0:00:19]} 47. Rb6 {[%emt 0:00:27]} f4 {[%emt 0:04:16]} 48. Kd1 {[%emt 0:00:32]} Kf5 {[%emt 0:02:57]} 49. Kc1 {[%emt 0:00:19]} e5 {[%emt 0:01:03]} 50. Rd1 {[%emt 0:00:11]} Bc6 {[%emt 0:00:07]} 51. h4 {[%emt 0:00:56]} e4 {[%emt 0:00:29]} 52. Bd4 {[%emt 0:00:30]} e3 {[%emt 0:00:24]} 53. Rf1 {[%emt 0:01:02]} e2 {[%emt 0:01:06]} 54. Re1 {[%emt 0:00:00]} f3 {[%emt 0:00:04]} 55. Kd2 {[%emt 0:00:14]} Rxh4 {[%emt 0:00:21]} 56. d7 {[%emt 0:00:47]} Rd8 {[%emt 0:04:56]} 57. Rbb1 {[%emt 0:00:37]} Rxd7 {[%emt 0:00:24]} 58. Ke3 {[%emt 0:00:23]} Re7+ {[%emt 0:00:13]} 59. Kd2 {[%emt 0:00:28]} Rh2 {[%emt 0:01:48]} 60. Be3 {[%emt 0:00:36]} Rd7+ {[%emt 0:01:08]} 61. Bd4 {[%emt 0:00:27]} Kf4 {[%emt 0:00:33]} 62. Ra1 {[%emt 0:00:32]} Be4 {[%emt 0:01:03]} 63. Rab1 {[%emt 0:00:19]} Bf5 {[%emt 0:00:17]} 64. Ra1 {[%emt 0:00:30]} Bg4 {[%emt 0:00:07]} 65. Rg1 {[%emt 0:00:49]} f2 {[%emt 0:00:42]} 66. Rxg4+ {[%emt 0:00:13]} Kxg4 {[%emt 0:00:05]} 67. Kxe2 {[%emt 0:00:07]} Re7+ {[%emt 0:00:08]} 68. Kd2 {[%emt 0:00:24]} f1=Q+ {[%emt 0:00:16]} 0-1

[Event "USA-ch Junior Girls 2018"]
[Site "Saint Louis"]
[Date "2018.07.19"]
[Round "7"]
[White "Matus, Nastassja"]
[Black "Wu, Rochelle"]
[Result "1-0"]
[ECO "D11"]
[WhiteElo "1960"]
[BlackElo "2110"]
[Annotator "NA RC"]
[PlyCount "113"]
[EventDate "2018.07.12"]
[EventType "tourn"]
[EventCountry "USA"]
[SourceTitle "playchess.com"]
[Source "ChessBase"]
[SourceQuality "1"]
[TimeControl "40/5400+30:1800+30"]

1. d4 {[%emt 0:00:00]} d5 {[%emt 0:00:00]} 2. c4 {[%emt 0:00:00]} c6 {[%emt 0:00:00]} 3. Nf3 {[%emt 0:00:00]} Nf6 {[%emt 0:00:00]} 4. Qb3 {[%emt 0:00:00]} dxc4 {[%emt 0:01:04]} 5. Qxc4 {[%emt 0:00:00]} Bg4 {[%emt 0:00:45]} 6. Nbd2 {[%emt 0:00:21]} Nbd7 {[%emt 0:00:54] D23: Queen's Gambit Accepted: 3 Nf3 Nf6 sidelines} 7. g3 {[%emt 0:00:35]} e6 {[%emt 0:00:54]} 8. Bg2 {[%emt 0:00:35]} Be7 {[%emt 0:00:33]} 9. O-O {[%emt 0:00:26]} O-O {[%emt 0:00:51]} 10. Re1 {[%emt 0:14:20]} Rc8 {[%emt 0:06:04] LiveBook: 7 Partien} 11. Qb3 {[%emt 0:01:21]} Qb6 {[%emt 0:03:38]} 12. Nc4 {[%emt 0:11:07]} Qa6 {[%emt 0:01:30]} 13. Bf4 {[%emt 0:04:51] [#]} Nd5 $146 {[%emt 0:05:23]} ({Predecessor:} 13... c5 14. Nfe5 {½-½ (39) Krasenkow,M (2607)-Khairullin,I (2638) Jurmala 2012}) 14. Bd6 {[%emt 0:04:03]} N7b6 {[%emt 0:10:38]} 15. Bxe7 {[%emt 0:02:20]} Nxe7 {[%emt 0:01:23]} 16. Nce5 {[%emt 0:13:21]} Bh5 {[%emt 0:03:56]} 17. Nd3 {[%emt 0:05:54]} Qc4 {[%emt 0:04:33]} 18. Qxc4 {[%emt 0:04:36]} Nxc4 {[%emt 0:00:06]} 19. Rac1 {[%emt 0:00:21]} Nd6 {[%emt 0:01:40]} 20. Nf4 {[%emt 0:01:31]} Bxf3 {[%emt 0:01:26]} 21. Bxf3 {[%emt 0:00:35]} Rfd8 {[%emt 0:01:03]} 22. Red1 {[%emt 0:01:37]} g6 {[%emt 0:05:17]} 23. Nd3 {[%emt 0:03:33]} Nd5 {[%emt 0:07:08]} 24. Nc5 {[%emt 0:08:02]} b6 {[%emt 0:02:09]} 25. Nd3 {[%emt 0:02:56]} Ne7 {[%emt 0:07:08]} 26. e3 {[%emt 0:06:14]} Rc7 {[%emt 0:03:36]} 27. Nb4 {[%emt 0:04:19]} Rdc8 {[%emt 0:01:26]} 28. Na6 {[%emt 0:00:32]} Rd7 {[%emt 0:00:15]} 29. Rc2 {[%emt 0:01:05]} Nb7 {[%emt 0:01:24]} 30. Rdc1 {[%emt 0:01:45]} Rd6 {[%emt 0:01:23]} 31. b4 {[%emt 0:01:49]} b5 {[%emt 0:12:34]} 32. Nc5 {[%emt 0:01:43]} Nd8 {[%emt 0:01:27]} 33. Ne4 {[%emt 0:00:46]} Rd5 {[%emt 0:00:43]} 34. Nf6+ {[%emt 0:00:08]} Kg7 {[%emt 0:00:05]} 35. Nxd5 {[%emt 0:00:18]} exd5 {[%emt 0:00:22]} 36. Rc3 {[%emt 0:01:47]} f5 {[%emt 0:00:50]} 37. Be2 {[%emt 0:00:47]} Rb8 {[%emt 0:00:16]} 38. Ra1 {[%emt 0:00:43]} a6 {[%emt 0:00:40]} 39. a4 {[%emt 0:00:49]} Nf7 {[%emt 0:00:25]} 40. axb5 {[%emt 0:00:00]} axb5 {[%emt 0:00:00]} 41. Ra7 {[%emt 0:01:31]} Kf6 {[%emt 0:00:18]} 42. Rca3 {[%emt 0:02:21]} Nd6 {[%emt 0:00:21]} 43. Kg2 {[%emt 0:05:13]} Ke6 {[%emt 0:00:30]} 44. h4 {[%emt 0:03:41]} h5 {[%emt 0:02:57]} 45. Ra1 {[%emt 0:03:35]} Ndc8 {[%emt 0:01:36]} 46. R7a3 {[%emt 0:01:28]} Nd6 {[%emt 0:00:29]} 47. Kh3 {[%emt 0:02:43]} Kf6 {[%emt 0:01:26]} 48. R3a2 {[%emt 0:02:19]} Rb7 {[%emt 0:01:03]} 49. Bd3 {[%emt 0:00:17]} Rb8 {[%emt 0:01:00]} 50. f3 {[%emt 0:01:07]} Rh8 $18 {[%emt 0:00:28]} 51. Rf1 {[%emt 0:01:19]} Ke6 {[%emt 0:00:42]} 52. Ra7 {[%emt 0:03:14]} Rh6 {[%emt 0:04:44]} 53. Re1 {[%emt 0:00:26]} Kf6 {[%emt 0:01:36]} 54. Rc7 {[%emt 0:01:58]} Rh8 {[%emt 0:01:04]} 55. e4 {[%emt 0:04:14]} dxe4 {[%emt 0:00:37]} 56. fxe4 {[%emt 0:00:05]} fxe4 {[%emt 0:00:23]} 57. Bxe4 {[%emt 0:00:04]} 1-0